bitfinex-derivatives/quotes_SOLF0:USTF0_20241203
["timestamp","ask_amount","ask_price","bid_price","bid_amount"]
[1733217845448,10.10875179,225.64,225.52,3.4709]
[1733217845643,10.10875179,225.64,225.56,7.96875179]
[1733217846149,7.96875179,225.62,225.56,7.96875179]
[1733217846848,7.96875179,225.62,225.52,3.4709]
[1733217847144,7.96875179,225.62,225.55,7.96875179]
[1733217847848,2.14,225.64,225.6,2.2155]
[1733217848944,7.96875179,225.69,225.61,7.96875179]
[1733217849146,65.92903096,225.76,225.65,7.96875179]
[1733217849348,2.14,225.75,225.66,2.2149]
[1733217849549,2.14,225.75,225.65,7.96875179]
[1733217849550,7.96875179,225.73,225.65,7.96875179]
[1733217849949,7.96875179,225.71,225.65,7.96875179]
[1733217850147,2.14,225.75,225.65,7.96875179]
[1733217850354,7.96875179,225.72,225.65,7.96875179]
[1733217851149,7.96875179,225.72,225.69,2.2147]
[1733217851549,7.96875179,225.74,225.69,2.2147]
[1733217851854,2.14,225.8,225.74,2.2141]
[1733217852052,7.96875179,225.82,225.73,7.96875179]
[1733217852249,2.213,225.87,225.75,7.96875179]
[1733217852463,7.96875179,225.86,225.79,7.96875179]
[1733217852746,2.14,225.9,225.79,7.96875179]
[1733217852949,7.96875179,225.87,225.82,2.2133]
[1733217853153,2.14,225.9,225.78,2.14]
[1733217853154,7.96875179,225.85,225.78,2.14]
[1733217853552,7.96875179,225.85,225.77,10.10875179]
[1733217854059,4.3527,225.9,225.77,10.10875179]
[1733217854355,7.96875179,225.85,225.75,3.9748]
[1733217854555,7.96875179,225.83,225.75,3.9748]
[1733217854855,7.96875179,225.81,225.75,3.9748]
[1733217855053,7.96875179,225.81,225.76,2.214]
[1733217855348,7.96875179,225.81,225.75,3.9748]
[1733217855553,7.96875179,225.83,225.77,2.2138]
[1733217855754,7.96875179,225.84,225.76,7.96875179]
[1733217855950,2.14,225.85,225.76,7.96875179]
[1733217856255,7.96875179,225.84,225.76,7.96875179]
[1733217856647,7.96875179,225.84,225.75,3.9748]
[1733217856847,2.14,225.85,225.76,2.2139]
[1733217856848,7.96875179,225.82,225.76,2.2139]
[1733217857052,7.96875179,225.82,225.75,3.9748]
[1733217857053,2.14,225.85,225.75,3.9748]
[1733217857253,2.14,225.85,225.78,7.96875179]
[1733217857452,7.96875179,225.86,225.78,7.96875179]
[1733217857453,68.39067369,225.94,225.78,7.96875179]
[1733217857647,2.14,225.93,225.8,7.96875179]
[1733217857848,68.39067369,225.94,225.82,7.96875179]
[1733217857849,2.2124,225.92,225.82,7.96875179]
[1733217858157,2.14,225.96,225.88,7.96875179]
[1733217858451,7.96875179,225.96,225.88,7.96875179]
[1733217858656,7.96875179,225.96,225.91,2.2125]
[1733217858954,7.96875179,225.96,225.88,7.96875179]
[1733217859158,7.96875179,225.96,225.91,2.2125]
[1733217859357,7.96875179,225.96,225.88,7.96875179]
[1733217859559,14.56215417,225.98,225.79,2.19548477]
[1733217859761,14.56215417,225.98,225.81,12.42215417]
[1733217859951,14.56215417,225.98,225.75,3.9748]
[1733217859952,14.56215417,225.98,225.84,12.42215417]
[1733217860459,14.56215417,225.98,225.85,2.14]
[1733217860656,14.56215417,225.98,225.85,4.39755138]
[1733217860954,14.56215417,225.98,225.85,2.14]
[1733217861260,12.42215417,225.95,225.83,2.14]
[1733217862057,14.63425417,225.95,225.86,2.2129]
[1733217862358,12.42215417,225.95,225.83,2.14]
[1733217864059,12.42215417,225.95,225.87,2.2129]
[1733217864363,12.42215417,225.95,225.83,2.14]
[1733217864558,16.77395417,225.98,225.89,2.2127]
[1733217865661,2.2119,225.97,225.89,2.2127]
[1733217866657,2.2123,225.93,225.85,2.213]
[1733217866861,12.42215417,225.95,225.81,2.12]
[1733217866862,2.12,225.92,225.81,2.12]
[1733217867157,2.12,225.92,225.56,4.36959359]
[1733217867158,14.54215417,225.92,225.6,0.2188862]
[1733217867359,12.42215417,225.84,225.66,4.36433758]
[1733217867558,14.54215417,225.84,225.7,12.42215417]
[1733217867759,14.54215417,225.84,225.75,2.214]
[1733217867967,14.54215417,225.84,225.67,46.94607986]
[1733217868160,12.42215417,225.81,225.67,49.06607986]
[1733217868460,2.12,225.84,225.64,12.42215417]
[1733217868461,12.42215417,225.78,225.64,12.42215417]
[1733217868666,2.12,225.77,225.65,2.1979581]
[1733217868965,2.12,225.77,225.69,2.2147]
[1733217870658,2.12,225.77,225.7,2.2146]
[1733217870966,2.12,225.77,225.64,13.69415417]
[1733217871166,2.12,225.77,225.73,2.2143]
[1733217871566,2.12,225.77,225.67,12.42215417]
[1733217873063,2.12,225.77,225.73,2.2143]
[1733217875061,12.42215417,225.86,225.7,12.42215417]
[1733217875263,2.14,225.85,225.7,12.42215417]
[1733217875460,12.42215417,225.83,225.68,2.14]
[1733217875663,12.42215417,225.8,225.68,2.14]
[1733217875868,2.14,225.79,225.68,2.14]
[1733217876267,2.14,225.79,225.74,2.2142]
[1733217876772,2.14,225.83,225.79,2.2136]
[1733217877872,12.42215417,225.88,225.76,14.60815301]
[1733217877873,2.14,225.88,225.76,14.60815301]
[1733217878074,2.14,225.88,225.76,12.42215417]
[1733217878567,2.14,225.88,225.74,3.9128]
[1733217879569,2.213,225.86,225.74,3.9128]
[1733217879775,12.42215417,225.86,225.74,3.9128]
[1733217879974,2.2132,225.84,225.76,2.2139]
[1733217880276,2.14,225.83,225.74,3.9128]
[1733217880572,2.14,225.83,225.77,2.2139]
[1733217882076,2.14,225.83,225.78,2.2138]
[1733217882271,2.14,225.83,225.74,3.9128]
[1733217882472,2.14,225.83,225.77,2.2139]
[1733217883072,2.14,225.83,225.74,3.9128]
[1733217883378,2.14,225.83,225.79,2.2136]
[1733217884172,2.14,225.83,225.78,2.2138]
[1733217885775,2.14,225.83,225.81,2.2134]
[1733217887073,2.14,225.83,225.76,2.2139]
[1733217887278,2.14,225.83,225.74,16.33495417]
[1733217888179,2.14,225.83,225.79,2.2136]
[1733217888481,2.14,225.83,225.74,16.33495417]
[1733217888677,2.14,225.83,225.79,2.2137]
[1733217888876,2.14,225.83,225.74,16.33495417]
[1733217889280,2.14,225.83,225.79,2.2137]
[1733217890680,2.14,225.83,225.8,2.2136]
[1733217891077,2.14,225.84,225.75,2.20789308]
[1733217891683,2.6391,225.91,225.81,7.95688544]
[1733217891883,7.95688544,225.89,225.81,7.95688544]
[1733217892685,7.95688544,225.87,225.74,6.0528]
[1733217892879,10.16988544,225.87,225.8,2.2135]
[1733217893181,10.16988544,225.87,225.79,7.95688544]
[1733217894083,10.16988544,225.87,225.81,2.2135]
[1733217895083,7.95688544,225.87,225.79,7.95688544]
[1733217895279,7.95688544,225.87,225.76,2.241636]
[1733217895280,2.14,225.9,225.83,7.95688544]
[1733217895485,7.95688544,225.92,225.83,7.95688544]
[1733217895674,2.14,225.91,225.83,7.95688544]
[1733217895876,2.14,225.91,225.86,2.2129]
[1733217897082,2.14,225.91,225.87,2.2129]
[1733217897376,2.14,225.91,225.85,7.95688544]
[1733217897680,2.14,225.91,225.88,2.2128]
[1733217898278,2.14,225.91,225.85,7.95688544]
[1733217899982,2.14,225.91,225.87,2.2129]
[1733217900388,7.95688544,225.9,225.84,2.2131]
[1733217900580,7.95688544,225.9,225.79,2.14]
[1733217900778,7.95688544,225.88,225.81,7.95688544]
[1733217901383,2.14,225.91,225.81,7.95688544]
[1733217901687,2.14,225.91,225.83,7.95688544]
[1733217901886,7.95688544,225.9,225.81,7.95688544]
[1733217902277,7.95688544,225.9,225.84,2.2131]
[1733217902778,7.95688544,225.88,225.78,2.20066152]
[1733217902983,7.95688544,225.88,225.8,7.95688544]
[1733217903380,10.16968544,225.88,225.8,7.95688544]
[1733217903888,2.14,225.91,225.77,7.95688544]
[1733217903889,7.95688544,225.86,225.77,7.95688544]
[1733217904190,10.09688544,225.86,225.77,7.95688544]
[1733217904591,10.09688544,225.86,225.8,2.2136]
[1733217904784,10.09688544,225.86,225.77,7.95688544]
[1733217905388,10.09688544,225.86,225.8,2.2136]
[1733217906294,7.95688544,225.84,225.79,2.2137]
[1733217906684,7.95688544,225.84,225.77,7.95688544]
[1733217907090,7.95688544,225.84,225.78,2.2137]
[1733217907290,7.95688544,225.84,225.77,7.95688544]
[1733217907684,7.95688544,225.84,225.79,2.2137]
[1733217907886,2.2131,225.85,225.79,2.2137]
[1733217908190,2.2133,225.83,225.77,10.17078544]
[1733217908489,7.95688544,225.82,225.74,3.9128]
[1733217908790,7.95688544,225.82,225.76,2.214]
[1733217908990,7.95688544,225.82,225.74,11.86968544]
[1733217909391,7.95688544,225.82,225.77,2.2139]
[1733217909988,7.95688544,225.84,225.78,2.2138]
[1733217910392,10.09688544,225.86,225.78,7.95688544]
[1733217910591,2.14,225.86,225.8,7.95688544]
[1733217910793,2.14,225.86,225.75,2.17566907]
[1733217910794,2.14,225.88,225.84,7.95688544]
[1733217911191,2.14,225.93,225.88,2.2128]
[1733217911388,2.14,225.94,225.88,7.95688544]
[1733217911594,7.95688544,225.97,225.9,7.95688544]
[1733217911892,2.14,225.98,225.9,7.95688544]
[1733217912299,2.14,225.98,225.92,2.2124]
[1733217912495,2.14,225.98,225.9,7.95688544]
[1733217912695,1.2706,226.04,225.94,7.95688544]
[1733217912990,7.95688544,226.01,225.94,7.95688544]
[1733217913197,10.09688544,226.01,225.94,7.95688544]
[1733217913692,2.14,226.01,225.92,12.41551748]
[1733217914089,2.14,226.01,225.95,2.2121]
[1733217914697,2.2118,225.99,225.91,2.2125]
[1733217914992,2.14,226.01,225.9,2.14]
[1733217915290,2.14,226.01,225.93,2.2123]
[1733217915887,2.14,226.01,225.94,2.2123]
[1733217916487,4.3517,226.01,225.94,2.2123]
[1733217916694,2.14,226.01,225.94,2.2123]
[1733217917090,2.14,226.01,225.9,2.14]
[1733217917295,2.2117,226.0,225.89,4.045]
[1733217917497,2.14,226.01,225.89,4.045]
[1733217917696,2.2117,226.0,225.93,2.2123]
[1733217917996,2.2117,226.0,225.89,1.398]
[1733217917997,12.41551748,226.0,225.89,1.398]
[1733217918191,2.2119,225.99,225.84,14.55551748]
[1733217918504,12.41551748,226.0,225.84,14.55551748]
[1733217918798,2.2122,225.95,225.84,14.55551748]
[1733217919000,2.14,225.94,225.84,14.55551748]
[1733217919395,2.14,225.94,225.88,2.2128]
[1733217919794,2.14,225.94,225.84,14.55551748]
[1733217920996,2.14,225.94,225.89,2.2127]
[1733217921392,2.14,225.94,225.84,14.55551748]
[1733217921393,2.14,225.94,225.87,2.213]
[1733217921596,2.14,225.94,225.84,14.55551748]
[1733217921992,2.14,225.94,225.87,2.213]
[1733217922189,2.14,225.94,225.84,14.55551748]
[1733217922489,2.14,225.94,225.87,12.41551748]
[1733217922692,2.14,225.94,225.91,2.2125]
[1733217923095,2.14,225.98,225.87,12.41551748]
[1733217923289,2.14,225.98,225.84,2.14]
[1733217923290,2.14,225.98,225.9,12.41551748]
[1733217923795,2.2115,226.02,225.94,2.2122]
[1733217924001,2.14,226.01,225.9,12.41551748]
[1733217924299,2.14,226.02,225.97,2.2119]
[1733217924497,65.96769417,226.04,225.93,12.41551748]
[1733217925201,65.96769417,226.04,225.99,2.2118]
[1733217925792,65.96769417,226.04,225.98,2.2119]
[1733217925992,65.96769417,226.04,225.93,12.41551748]
[1733217926199,65.96769417,226.04,225.92,2.6282]
[1733217926497,2.2115,226.03,225.97,2.2119]
[1733217926691,2.2115,226.03,225.92,2.6282]
[1733217926893,2.2115,226.03,225.96,2.212]
[1733217927399,2.2115,226.03,225.92,2.6282]
[1733217927600,2.2115,226.03,225.97,2.212]
[1733217927795,65.96769417,226.04,225.93,12.41551748]
[1733217927999,65.96769417,226.04,225.96,12.41551748]
[1733217928197,65.96769417,226.04,226.0,2.2116]
[1733217928407,2.14,226.05,225.96,12.41551748]
[1733217931807,2.14,226.05,225.99,2.2117]
[1733217932012,2.14,226.05,225.94,2.14]
[1733217932206,2.14,226.05,225.93,13.76881748]
[1733217932401,2.14,226.05,225.93,1.3533]
[1733217932607,2.2115,226.02,225.96,2.2121]
[1733217932802,2.14,226.05,225.93,1.3533]
[1733217933009,4.3513,226.05,225.98,2.2119]
[1733217933610,2.2113,226.04,225.98,2.2119]
[1733217934008,2.2113,226.04,225.96,2.212]
[1733217934210,2.2113,226.04,225.93,13.76881748]
[1733217934614,2.2114,226.03,225.98,2.2118]
[1733217934806,2.14,226.05,225.93,1.3533]
[1733217935008,2.14,226.05,225.97,2.212]
[1733217935211,2.2115,226.02,225.97,2.212]
[1733217935413,12.41551748,226.03,225.9,14.57551748]
[1733217935707,12.41551748,226.03,225.94,2.2122]
[1733217935911,12.41551748,226.03,225.9,14.57551748]
[1733217936314,2.2118,226.0,225.95,2.2121]
[1733217936514,4.3718,226.0,225.95,2.2121]
[1733217937712,2.16,226.0,225.87,14.57551748]
[1733217937910,2.2119,225.98,225.93,2.2124]
[1733217938210,14.57551748,226.0,225.87,12.41551748]
[1733217938411,2.2121,225.96,225.92,2.2125]
[1733217938611,14.57551748,226.0,225.92,2.2125]
[1733217938913,14.57551748,226.0,225.84,3.95]
[1733217938914,12.41551748,225.97,225.84,3.95]
[1733217939310,2.2122,225.95,225.84,2.6733]
[1733217939507,2.16,225.94,225.89,2.2127]
[1733217939911,2.16,225.94,225.84,2.6733]
[1733217940313,4.3723,225.94,225.84,2.6733]
[1733217940513,2.16,225.94,225.84,2.6733]
[1733217941018,2.2124,225.93,225.84,2.6733]
[1733217941320,2.16,225.94,225.84,2.6733]
[1733217942916,2.16,225.94,225.9,2.2127]
[1733217943306,4.3723,225.94,225.9,2.2127]
[1733217943506,2.16,225.94,225.9,2.2126]
[1733217944315,4.3724,225.94,225.89,2.2127]
[1733217945118,4.3724,225.94,225.84,2.6733]
[1733217945119,2.16,225.94,225.84,2.6733]
[1733217945819,2.2125,225.92,225.84,2.6733]
[1733217946913,2.2125,225.92,225.88,2.2128]
[1733217947115,2.2125,225.92,225.84,2.6733]
[1733217947511,12.41551748,225.91,225.78,35.90039862]
[1733217947717,12.41551748,225.91,225.78,1.2945]
[1733217947919,12.41551748,225.88,225.78,1.2945]
[1733217948115,2.16,225.87,225.78,1.2945]
[1733217948323,12.41551748,225.91,225.78,1.2945]
[1733217948324,2.16,225.86,225.78,1.2945]
[1733217948519,4.373,225.87,225.8,2.2136]
[1733217948724,2.16,225.87,225.78,1.2945]
[1733217949425,2.16,225.87,225.78,3.55065815]
[1733217950220,2.16,225.87,225.8,0.30207]
[1733217950921,2.16,225.87,225.82,2.2133]
[1733217951926,2.16,225.87,225.8,0.30207]
[1733217952524,2.16,225.87,225.82,2.2133]
[1733217952826,2.16,225.87,225.8,0.30207]
[1733217954222,2.16,225.87,225.83,2.2133]
[1733217955723,2.16,225.87,225.82,2.2134]
[1733217956524,2.16,225.87,225.81,7.95515873]
[1733217956718,2.16,225.87,225.83,2.2133]
[1733217958730,4.373,225.87,225.82,2.2134]
[1733217959230,2.16,225.87,225.81,7.95515873]
[1733217960136,2.16,225.87,225.83,2.2133]
[1733217960524,1.3686,225.93,225.83,7.95515873]
[1733217960732,2.16,225.92,225.87,2.2129]
[1733217960928,2.7591,225.99,225.87,7.95515873]
[1733217961131,2.16,225.95,225.89,7.95515873]
[1733217961432,2.16,225.95,225.91,7.95515873]
[1733217962524,2.16,225.95,225.89,7.95515873]
[1733217963033,3.5204,225.99,225.93,2.2124]
[1733217963227,7.95515873,225.98,225.93,2.2124]
[1733217963625,3.5204,225.99,225.93,2.2124]
[1733217964136,3.5204,225.99,225.92,2.2124]
[1733217964338,12.42035345,225.98,225.87,2.14]
[1733217964630,12.42035345,225.98,225.84,12.42035345]
[1733217964837,12.42035345,225.98,225.81,47.02308574]
[1733217965025,12.42035345,225.95,225.81,49.16308574]
[1733217965226,2.14,225.94,225.82,1.10733552]
[1733217965535,2.14,225.94,225.81,49.16308574]
[1733217966231,2.2125,225.92,225.86,2.2129]
[1733217966835,2.2125,225.92,225.81,49.16308574]
[1733217967137,12.42035345,225.92,225.8,0.30207]
[1733217967529,12.42035345,225.92,225.84,2.2131]
[1733217967734,2.2129,225.88,225.8,0.30207]
[1733217967934,2.14,225.87,225.8,0.30207]
[1733217969239,4.353,225.87,225.81,2.2135]
[1733217969442,4.353,225.87,225.8,0.30207]
[1733217969443,2.14,225.87,225.8,0.30207]
[1733217970039,2.2131,225.86,225.8,2.51567]
[1733217970657,2.14,225.87,225.8,0.30207]
[1733217970840,2.14,225.87,225.8,2.51567]
[1733217971648,12.42035345,225.86,225.8,0.30207]
[1733217972142,2.2132,225.85,225.8,0.30207]
[1733217972346,12.42035345,225.86,225.8,0.30207]
[1733217972852,2.2132,225.84,225.8,0.30207]
[1733217973043,12.42035345,225.86,225.8,0.30207]
[1733217973243,2.14,225.87,225.8,0.30207]
[1733217974247,2.14,225.87,225.82,2.2134]
[1733217974447,2.14,225.87,225.8,0.30207]
[1733217974846,2.14,225.87,225.83,2.2133]
[1733217975251,2.14,225.87,225.8,0.30207]
[1733217975454,2.14,225.87,225.83,2.2133]
[1733217976045,2.14,225.87,225.8,0.30207]
[1733217976853,4.3529,225.87,225.81,2.2135]
[1733217977046,2.14,225.87,225.8,0.30207]
[1733217977745,2.213,225.86,225.81,2.2135]
[1733217978657,2.213,225.86,225.82,2.2134]
[1733217978859,2.213,225.86,225.8,0.30207]
[1733217979051,14.56035345,225.87,225.8,0.30207]
[1733217979355,14.56035345,225.87,225.81,2.2135]
[1733217979548,14.56035345,225.87,225.8,0.30207]
[1733217979753,2.14,225.87,225.76,14.58349493]
[1733217980155,2.14,225.87,225.85,2.213]
[1733217980351,12.42035345,225.93,225.79,12.42035345]
[1733217980651,2.14,225.91,225.82,12.42035345]
[1733217980857,12.42035345,225.99,225.85,12.42035345]
[1733217981058,2.14,225.98,225.85,12.42035345]
[1733217981357,4.3519,225.98,225.85,14.56035345]
[1733217982248,4.3519,225.98,225.92,2.2124]
[1733217982656,2.14,225.98,225.92,2.2124]
[1733217982857,2.14,225.98,225.85,2.14]
[1733217983158,12.42035345,225.96,225.83,1.2836]
[1733217983554,2.2123,225.93,225.84,1.10736363]
[1733217983749,2.14,225.93,225.8,2.6044]
[1733217984057,14.56035345,225.93,225.8,2.6044]
[1733217984359,2.2125,225.91,225.8,2.6044]
[1733217984560,14.56035345,225.93,225.8,2.6044]
[1733217984859,2.2127,225.9,225.8,2.6044]
[1733217985057,14.56035345,225.93,225.8,2.6044]
[1733217985253,14.56035345,225.93,225.77,1.2836]
[1733217985254,12.42035345,225.87,225.82,2.2133]
[1733217985560,2.14,225.86,225.71,12.42035345]
[1733217985859,2.14,225.85,225.79,2.2137]
[1733217986255,1.3235,225.95,225.82,12.42035345]
[1733217986457,2.14,225.96,225.85,12.42035345]
[1733217986660,2.14,225.97,225.85,12.42035345]
[1733217986855,2.14,225.97,225.88,12.42035345]
[1733217987160,2.14,225.97,225.92,2.2124]
[1733217987353,2.14,225.97,225.88,12.42035345]
[1733217988754,2.14,225.97,225.92,2.2125]
[1733217989664,2.14,225.97,225.93,2.2123]
[1733217990357,1.2759,226.01,225.88,12.42035345]
[1733217990562,1.2759,226.01,225.87,2.14]
[1733217990563,2.14,226.0,225.91,12.42035345]
[1733217990957,2.14,226.0,225.95,2.2122]
[1733217991157,2.14,226.0,225.91,12.42035345]
[1733217991661,2.14,226.0,225.88,12.42035345]
[1733217992061,2.14,226.0,225.91,12.42035345]
[1733217992959,2.14,226.0,225.94,2.2123]
[1733217993159,2.14,226.0,225.88,12.42035345]
[1733217994060,2.14,226.0,225.92,2.2124]
[1733217994366,2.14,226.0,225.88,12.42035345]
[1733217995262,2.212,225.98,225.88,12.42035345]
[1733217995471,2.212,225.98,225.91,2.2125]
[1733217995858,2.212,225.97,225.91,2.2125]
[1733217996068,2.212,225.97,225.88,12.42035345]
[1733217996069,2.212,225.97,225.92,2.2124]
[1733217998165,2.2118,225.99,225.94,2.2122]
[1733217998573,2.14,226.0,225.88,12.42035345]
[1733217998872,4.3517,226.0,225.95,2.2121]
[1733217999267,4.3517,226.0,225.96,2.212]
[1733217999475,4.3517,226.0,225.88,12.42035345]
[1733217999674,2.14,226.0,225.88,12.42035345]
[1733217999874,2.14,226.0,225.94,2.2122]
[1733217999875,2.2118,225.99,225.94,2.2122]
[1733218000272,2.2118,225.99,225.88,12.42035345]
[1733218000575,2.14,226.0,225.88,12.42035345]
[1733218000778,2.14,226.0,225.89,1.3001]
[1733218001078,2.14,226.0,225.98,2.2119]
[1733218001272,2.14,226.0,225.91,12.42035345]
[1733218001873,2.14,226.0,225.97,2.2119]
[1733218002473,2.14,226.0,225.91,12.42035345]
[1733218002779,4.3517,226.0,225.89,1.3001]
[1733218002967,2.14,226.0,225.89,1.3001]
[1733218003466,2.14,226.0,225.95,2.2121]
[1733218004366,2.2118,225.99,225.95,2.2121]
[1733218004971,2.2121,225.96,225.89,1.3001]
[1733218005174,2.2121,225.96,225.85,12.42035345]
[1733218005767,2.2122,225.95,225.85,12.42035345]
[1733218005974,4.3722,225.95,225.89,2.2127]
[1733218006178,2.2124,225.93,225.83,3.5078]
[1733218006379,2.16,225.95,225.83,3.5078]
[1733218007275,2.2125,225.92,225.87,2.2129]
[1733218007680,2.16,225.95,225.83,1.3478]
[1733218007876,12.42035345,225.93,225.82,34.59998239]
[1733218008777,2.2131,225.86,225.81,2.2135]
[1733218009175,2.16,225.87,225.81,2.2135]
[1733218009570,4.373,225.87,225.81,2.2135]
[1733218009777,2.16,225.87,225.85,0.34687]
[1733218010373,14.58035345,225.87,225.85,0.34687]
[1733218010684,2.2131,225.86,225.85,0.34687]
[1733218011981,14.58035345,225.87,225.85,0.34687]
[1733218012181,16.79335345,225.87,225.85,0.34687]
[1733218012579,14.58035345,225.87,225.85,0.34687]
[1733218012979,2.213,225.86,225.85,0.34687]
[1733218018079,14.58035345,225.87,225.74,1.2691]
[1733218018285,12.42035345,225.84,225.74,1.2691]
[1733218019787,2.2135,225.82,225.77,2.2139]
[1733218019981,2.2135,225.82,225.74,1.2691]
[1733218019982,4.3735,225.82,225.74,1.2691]
[1733218020281,4.3735,225.82,225.77,2.2139]
[1733218020486,2.16,225.82,225.77,2.2139]
[1733218021579,2.16,225.82,225.71,2.6173]
[1733218022580,2.2138,225.79,225.74,2.2142]
[1733218022783,2.16,225.82,225.71,2.6173]
[1733218023184,12.42035345,225.81,225.71,1.3135]
[1733218023786,2.2139,225.78,225.73,2.2143]
[1733218023984,2.16,225.77,225.73,2.2143]
[1733218024487,2.16,225.77,225.72,2.2143]
[1733218024679,2.16,225.77,225.71,1.3135]
[1733218025278,2.16,225.77,225.67,12.42035345]
[1733218025479,2.16,225.77,225.66,35.36644397]
[1733218025683,7.96504839,225.75,225.67,7.96504839]
[1733218025887,10.17914839,225.75,225.7,2.2145]
[1733218027182,2.2143,225.74,225.68,2.2148]
[1733218027383,2.16,225.77,225.68,2.2148]
[1733218027384,7.96504839,225.73,225.68,2.2148]
[1733218028799,10.17924839,225.75,225.69,2.2147]
[1733218029090,7.96504839,225.75,225.69,2.2147]
[1733218029786,2.2144,225.73,225.66,7.96504839]
[1733218029993,7.96504839,225.75,225.66,7.96504839]
[1733218030683,2.2143,225.73,225.66,7.96504839]
[1733218030887,7.96504839,225.75,225.66,7.96504839]
[1733218031090,7.96504839,225.75,225.68,7.96504839]
[1733218031293,7.96504839,225.75,225.7,2.2146]
[1733218031687,10.12504839,225.77,225.68,7.96504839]
[1733218031988,12.33894839,225.77,225.72,2.2144]
[1733218032285,12.33894839,225.77,225.69,7.96504839]
[1733218032594,12.33894839,225.77,225.71,2.2145]
[1733218032791,2.214,225.76,225.71,2.2145]
[1733218032990,2.214,225.76,225.69,7.96504839]
[1733218033186,10.12504839,225.77,225.72,2.2144]
[1733218033492,12.33894839,225.77,225.72,2.2144]
[1733218033994,10.12504839,225.77,225.72,2.2144]
[1733218034188,2.2141,225.76,225.72,2.2144]
[1733218034493,2.2141,225.76,225.69,7.96504839]
[1733218034694,7.96504839,225.75,225.67,7.96504839]
[1733218035287,7.96504839,225.75,225.72,2.2143]
[1733218035688,7.96504839,225.75,225.62,4.0006]
[1733218035992,2.2143,225.74,225.69,2.2146]
[1733218036388,2.2143,225.74,225.7,2.2146]
[1733218036597,7.96504839,225.73,225.62,4.0006]
[1733218036799,4.3745,225.72,225.63,7.96504839]
[1733218036995,4.3745,225.72,225.65,2.215]
[1733218037197,7.96504839,225.71,225.63,7.96504839]
[1733218037395,2.2147,225.7,225.63,7.96504839]
[1733218037703,7.96504839,225.69,225.62,4.0006]
[1733218038192,7.96504839,225.69,225.65,2.215]
[1733218038390,7.96504839,225.69,225.62,4.0006]
[1733218038799,7.96504839,225.69,225.65,2.215]
[1733218039394,2.2145,225.71,225.66,2.2149]
[1733218039690,2.16,225.72,225.62,2.6511]
[1733218039691,7.96504839,225.7,225.62,2.6511]
[1733218039896,7.96504839,225.7,225.62,1.3568]
[1733218040101,2.2148,225.68,225.63,2.2152]
[1733218040295,2.2148,225.68,225.62,1.3568]
[1733218040296,2.16,225.67,225.62,1.3568]
[1733218040800,4.3749,225.67,225.62,1.3568]
[1733218041499,2.16,225.67,225.63,2.2152]
[1733218042192,2.16,225.67,225.62,1.3568]
[1733218042399,2.16,225.75,225.65,7.96504839]
[1733218042594,10.12504839,225.77,225.69,7.96504839]
[1733218043296,2.16,225.76,225.71,7.96504839]
[1733218043501,2.16,225.78,225.71,7.96504839]
[1733218044091,2.16,225.78,225.75,2.2141]
[1733218044795,2.16,225.78,225.74,2.2141]
[1733218045800,4.3738,225.78,225.74,2.2141]
[1733218045995,2.16,225.78,225.75,2.214]
[1733218046591,2.16,225.78,225.77,2.2139]
[1733218047092,2.16,225.78,225.69,2.2146]
[1733218047400,2.16,225.78,225.66,2.16]
[1733218047401,2.16,225.78,225.71,7.96504839]
[1733218047899,2.16,225.78,225.76,2.2139]
[1733218048693,0.25977,225.79,225.78,2.2138]
[1733218051302,8.22481839,225.79,225.76,2.2139]
[1733218051498,8.22481839,225.79,225.73,2.7226]
[1733218051999,8.22481839,225.79,225.75,2.214]